[Event "26th Abu Dhabi Master 2019"]
[Site "Abu Dhabi"]
[Date "2019.08.03"]
[Round "2.43"]
[White "Suleymanli, Aydin"]
[Black "Panda Sambit"]
[Result "1-0"]
[ECO "D53"]
[WhiteElo "2416"]
[BlackElo "2126"]
[Annotator "NA"]
[PlyCount "103"]
[EventDate "2019.08.02"]
[EventType "swiss"]
[EventCountry "UAE"]
[SourceTitle "playchess.com"]
[Source "ChessBase"]
[SourceQuality "1"]
[TimeControl "5400+30"]

1. d4 {[%emt 0:00:00]} d5 {[%emt 0:00:48]} 2. c4 {[%emt 0:00:00]} e6 {[%emt 0:00:08]} 3. Nc3 {[%emt 0:00:00]} Nf6 {[%emt 0:00:05]} 4. Bg5 {[%emt 0:00:03]} Be7 {[%emt 0:00:07]} 5. e3 {[%emt 0:00:03]} h6 {[%emt 0:00:04]} 6. Bh4 {[%emt 0:00:08]} O-O {[%emt 0:00:34]} 7. cxd5 {[%emt 0:00:07]} Nxd5 {[%emt 0:00:09]} 8. Bxe7 {[%emt 0:00:14]} Qxe7 {[%emt 0:00:07]} 9. Nxd5 {[%emt 0:00:21]} exd5 {[%emt 0:00:02]} 10. Rc1 {[%emt 0:01:49]} Bf5 {[%emt 0:09:46]} 11. Bd3 {[%emt 0:01:11]} Qb4+ {[%emt 0:12:17]} 12. Qd2 {[%emt 0:01:22]} Qxd2+ {[%emt 0:00:07]} 13. Kxd2 {[%emt 0:00:02]} Bxd3 {[%emt 0:00:08]} 14. Kxd3 {[%emt 0:00:02]} c6 {[%emt 0:00:05]} 15. Ne2 {[%emt 0:00:05]} Nd7 {[%emt 0:01:18]} 16. f3 {[%emt 0:00:34]} a5 {[%emt 0:09:54]} 17. h4 {[%emt 0:01:31]} Nb6 {[%emt 0:06:56]} 18. g4 {[%emt 0:19:20]} Rfe8 {[%emt 0:02:26]} 19. Rc2 {[%emt 0:00:09]} g6 {[%emt 0:07:07]} 20. h5 {[%emt 0:08:41]} g5 {[%emt 0:01:09]} 21. Ng3 {[%emt 0:00:29]} Nc8 {[%emt 0:01:19]} 22. Nf5 {[%emt 0:01:19]} Re6 {[%emt 0:00:32]} 23. e4 {[%emt 0:04:48]} dxe4+ {[%emt 0:18:02]} 24. fxe4 {[%emt 0:00:12]} Nd6 {[%emt 0:03:31]} 25. Ng3 {[%emt 0:07:34]} Rd8 {[%emt 0:03:23]} 26. a4 {[%emt 0:00:30]} Nc8 {[%emt 0:03:01]} 27. Rf1 {[%emt 0:06:01]} Nb6 {[%emt 0:09:25]} 28. Rc5 {[%emt 0:13:12]} Nd7 {[%emt 0:01:07]} 29. Rcf5 {[%emt 0:02:40]} b6 {[%emt 0:00:44]} 30. Kc2 {[%emt 0:03:25]} f6 {[%emt 0:00:27]} 31. Kb1 {[%emt 0:01:15]} Rde8 {[%emt 0:05:26]} 32. Rc1 {[%emt 0:02:31]} c5 {[%emt 0:01:21]} 33. Rd5 {[%emt 0:00:07]} R6e7 {[%emt 0:03:58]} 34. Nf5 {[%emt 0:00:40]} Rh7 {[%emt 0:00:01]} 35. Nxh6+ {[%emt 0:01:28]} Kf8 {[%emt 0:00:00]} 36. Nf5 {[%emt 0:00:16]} Rxe4 {[%emt 0:00:56]} 37. dxc5 {[%emt 0:00:13]} Nxc5 {[%emt 0:00:47]} 38. Rd6 {[%emt 0:01:30]} Rxg4 {[%emt 0:01:03]} 39. Rxf6+ {[%emt 0:00:22]} Ke8 {[%emt 0:00:07]} 40. Rxb6 {[%emt 0:00:46]} Nxa4 {[%emt 0:00:53]} 41. Rb8+ {[%emt 0:00:36]} Kd7 {[%emt 0:00:32]} 42. Rb7+ {[%emt 0:00:23]} Ke6 {[%emt 0:00:00]} 43. Rxh7 {[%emt 0:00:09]} Kxf5 {[%emt 0:00:05]} 44. Rf1+ {[%emt 0:00:21]} Ke6 {[%emt 0:00:08]} 45. Rc7 {[%emt 0:00:59]} Kd6 {[%emt 0:00:51]} 46. Rc2 {[%emt 0:00:14]} Rh4 {[%emt 0:00:43]} 47. b3 {[%emt 0:00:53]} Nb6 {[%emt 0:00:00]} 48. Rf6+ {[%emt 0:00:06]} Ke5 {[%emt 0:00:16]} 49. Rxb6 {[%emt 0:00:07]} Rxh5 {[%emt 0:00:02]} 50. Rb5+ {[%emt 0:00:07]} Kd4 {[%emt 0:00:09]} 51. Rg2 {[%emt 0:00:22]} Kc3 {[%emt 0:00:22]} 52. Rg3+ {[%emt 0:00:06]} 1-0

[Event "26th Abu Dhabi Master 2019"]
[Site "Abu Dhabi"]
[Date "2019.08.03"]
[Round "2.44"]
[White "Tarini Goyal"]
[Black "Rakesh Kumar Jena"]
[Result "1/2-1/2"]
[ECO "A40"]
[WhiteElo "2038"]
[BlackElo "2395"]
[Annotator "NA"]
[PlyCount "84"]
[EventDate "2019.08.02"]
[EventType "swiss"]
[EventCountry "UAE"]
[SourceTitle "playchess.com"]
[Source "ChessBase"]
[SourceQuality "1"]
[TimeControl "5400+30"]

1. d4 e6 2. c4 b6 3. Bf4 Bb7 4. e3 Nf6 5. Nf3 Be7 6. h3 O-O 7. Nc3 a6 8. Bd3 d5 9. cxd5 exd5 10. O-O Nbd7 11. Rc1 c5 12. Bb1 c4 13. Ne5 b5 14. a3 Re8 15. Qf3 Nf8 16. g4 Ng6 17. Nxg6 hxg6 18. Rfd1 Qd7 19. Be5 a5 20. g5 Nh7 21. h4 b4 22. axb4 axb4 23. Ne2 Bc8 24. Kg2 Ra6 25. Nf4 Rd8 26. Rh1 f6 27. gxf6 gxf6 28. Nxg6 fxe5 29. Nxe5 Qe8 30. Rcg1 Rf6 31. Kf1+ Kh8 32. Qg3 Qg8 33. Ng6+ Rxg6 34. Qxg6 Qxg6 35. Rxg6 Nf8 36. Rg3 Be6 37. Ke2 Rc8 38. Rhg1 c3 39. bxc3 bxc3 40. Bc2 Bf6 41. f3 Rc7 42. h5 Bg7 1/2-1/2

[Event "26th Abu Dhabi Master 2019"]
[Site "Abu Dhabi"]
[Date "2019.08.03"]
[Round "2.45"]
[White "Mrudul Dehankar"]
[Black "Manush Shah"]
[Result "1/2-1/2"]
[ECO "B18"]
[WhiteElo "2074"]
[BlackElo "2373"]
[Annotator "NA"]
[PlyCount "108"]
[EventDate "2019.08.02"]
[EventType "swiss"]
[EventCountry "UAE"]
[SourceTitle "playchess.com"]
[Source "ChessBase"]
[SourceQuality "1"]
[TimeControl "5400+30"]

1. e4 {[%emt 0:00:00]} c6 {[%emt 0:00:17]} 2. d4 {[%emt 0:00:00]} d5 {[%emt 0:00:26]} 3. Nd2 {[%emt 0:00:43]} dxe4 {[%emt 0:00:12]} 4. Nxe4 {[%emt 0:00:04]} Bf5 {[%emt 0:00:11]} 5. Ng3 {[%emt 0:00:05]} Bg6 {[%emt 0:00:03]} 6. h4 {[%emt 0:00:06]} h6 {[%emt 0:00:03]} 7. Nh3 {[%emt 0:00:04]} Nf6 {[%emt 0:01:27]} 8. Nf4 {[%emt 0:00:10]} Bh7 {[%emt 0:00:01]} 9. Bc4 {[%emt 0:00:32]} Na6 {[%emt 0:00:50]} 10. O-O {[%emt 0:07:40]} Nc7 {[%emt 0:01:53]} 11. Ngh5 {[%emt 0:04:51]} e6 {[%emt 0:10:32]} 12. Re1 {[%emt 0:03:53]} Qd7 {[%emt 0:07:55]} 13. c3 {[%emt 0:19:43]} O-O-O {[%emt 0:02:24]} 14. Nd3 {[%emt 0:02:13]} Bxd3 {[%emt 0:10:07]} 15. Bxd3 {[%emt 0:03:25]} Nfd5 {[%emt 0:06:56]} 16. Qf3 {[%emt 0:12:58]} g6 {[%emt 0:10:06]} 17. Nf6 {[%emt 0:08:13]} Nxf6 {[%emt 0:01:05]} 18. Qxf6 {[%emt 0:00:04]} Rg8 {[%emt 0:06:06]} 19. g3 {[%emt 0:04:43]} Nd5 {[%emt 0:01:59]} 20. Qf3 {[%emt 0:00:15]} g5 {[%emt 0:02:16]} 21. hxg5 {[%emt 0:11:19]} hxg5 {[%emt 0:00:34]} 22. a3 {[%emt 0:01:53]} g4 {[%emt 0:04:43]} 23. Qe2 {[%emt 0:02:23]} Bd6 {[%emt 0:05:40]} 24. c4 {[%emt 0:06:06]} Nc7 {[%emt 0:01:09]} 25. Be3 {[%emt 0:03:39]} f5 {[%emt 0:02:13]} 26. Qd2 {[%emt 0:03:56]} Qh7 {[%emt 0:11:01]} 27. Qa5 {[%emt 0:03:52]} Rh8 {[%emt 0:02:28]} 28. Kf1 {[%emt 0:00:06]} Qh1+ {[%emt 0:01:40]} 29. Ke2 {[%emt 0:00:02]} Qf3+ {[%emt 0:00:22]} 30. Kd2 {[%emt 0:00:05]} f4 {[%emt 0:00:46]} 31. gxf4 {[%emt 0:00:09]} Bxf4 {[%emt 0:00:23]} 32. Kc3 {[%emt 0:00:20]} e5 {[%emt 0:05:31]} 33. dxe5 {[%emt 0:02:23]} b6 {[%emt 0:03:39]} 34. Qxa7 {[%emt 0:00:27]} Bxe5+ {[%emt 0:00:05]} 35. Kc2 {[%emt 0:00:07]} Rxd3 {[%emt 0:00:34]} 36. Kxd3 {[%emt 0:00:57]} Rd8+ {[%emt 0:00:02]} 37. Kc2 {[%emt 0:00:11]} Qe4+ {[%emt 0:00:09]} 38. Kc1 {[%emt 0:00:44]} Qxc4+ {[%emt 0:00:16]} 39. Kb1 {[%emt 0:00:01]} Qd3+ {[%emt 0:01:07]} 40. Ka2 {[%emt 0:00:05]} Qc4+ {[%emt 0:00:40]} 41. Kb1 {[%emt 0:00:02]} Qe4+ {[%emt 0:01:52]} 42. Ka2 {[%emt 0:00:34]} Qd5+ {[%emt 0:00:03]} 43. Kb1 {[%emt 0:00:05]} Nb5 {[%emt 0:01:00]} 44. Qa6+ {[%emt 0:02:15]} Kd7 {[%emt 0:00:04]} 45. Qa4 {[%emt 0:00:25]} Kc7 {[%emt 0:00:18]} 46. Qc2 {[%emt 0:00:36]} Rd7 {[%emt 0:01:18]} 47. a4 {[%emt 0:00:27]} Nd4 {[%emt 0:00:11]} 48. Bxd4 {[%emt 0:00:08]} Bxd4 {[%emt 0:00:12]} 49. Rd1 {[%emt 0:00:50]} Rf7 {[%emt 0:00:22]} 50. Rd2 {[%emt 0:00:34]} Rxf2 {[%emt 0:00:47]} 51. Rxf2 {[%emt 0:00:32]} Bxf2 {[%emt 0:00:02]} 52. Qxf2 {[%emt 0:00:32]} Qd1+ {[%emt 0:00:04]} 53. Ka2 {[%emt 0:00:04]} Qxa4+ {[%emt 0:00:02]} 54. Kb1 {[%emt 0:00:04]} Qd1+ {[%emt 0:00:03]} 1/2-1/2

[Event "26th Abu Dhabi Master 2019"]
[Site "Abu Dhabi"]
[Date "2019.08.03"]
[Round "2.49"]
[White "Nguyen, Anh Khoi"]
[Black "Wagh Suyog"]
[Result "1/2-1/2"]
[ECO "D15"]
[WhiteElo "2516"]
[BlackElo "2242"]
[Annotator "ChessBase"]
[PlyCount "53"]
[EventDate "2019.08.02"]
[EventType "swiss"]
[EventCountry "UAE"]
[SourceTitle "playchess.com"]
[Source "ChessBase"]
[SourceQuality "1"]
[TimeControl "5400+30"]

1. d4 d5 2. c4 c6 3. Nf3 Nf6 4. Nc3 a6 5. g3 dxc4 6. Ne5 b5 7. Bg2 Bb7 8. b3 cxb3 9. axb3 e6 10. O-O Be7 11. Bb2 O-O 12. Ne4 Nxe4 13. Bxe4 Bd6 14. Qc2 h6 15. Rfc1 Qe7 16. Nxc6 Nxc6 17. Bxc6 Rfb8 18. Qd3 Bxc6 19. Rxc6 a5 20. d5 e5 21. Rac1 a4 22. b4 e4 23. Qe3 Rd8 24. Rb6 Bxb4 25. Rxb5 a3 26. Ba1 Bd6 27. Kg2 1/2-1/2

[Event "26th Abu Dhabi Master 2019"]
[Site "Abu Dhabi"]
[Date "2019.08.03"]
[Round "2.50"]
[White "Kuybokarov, Temur"]
[Black "Paramzina, Anastasya"]
[Result "1-0"]
[ECO "E91"]
[WhiteElo "2511"]
[BlackElo "2300"]
[Annotator "ChessBase"]
[PlyCount "41"]
[EventDate "2019.08.02"]
[EventType "swiss"]
[EventCountry "UAE"]
[SourceTitle "playchess.com"]
[Source "ChessBase"]
[SourceQuality "1"]
[TimeControl "5400+30"]

1. d4 {[%emt 0:00:00]} Nf6 {[%emt 0:00:31]} 2. c4 {[%emt 0:00:05]} g6 {[%emt 0:00:06]} 3. Nc3 {[%emt 0:00:09]} Bg7 {[%emt 0:00:05]} 4. e4 {[%emt 0:00:11]} d6 {[%emt 0:00:03]} 5. Nf3 {[%emt 0:00:15]} O-O {[%emt 0:00:32]} 6. Be2 {[%emt 0:00:08]} Na6 {[%emt 0:00:23]} 7. O-O {[%emt 0:00:20]} e5 {[%emt 0:00:38]} 8. Be3 {[%emt 0:00:42]} h6 {[%emt 0:00:53]} 9. dxe5 {[%emt 0:15:52]} Ng4 {[%emt 0:00:30]} 10. Bf4 {[%emt 0:01:00]} Nxe5 {[%emt 0:03:30]} 11. Qd2 {[%emt 0:06:55]} g5 {[%emt 0:11:50]} 12. Be3 {[%emt 0:01:26]} Be6 {[%emt 0:03:32]} 13. b3 {[%emt 0:07:23]} Nxf3+ {[%emt 0:04:49]} 14. Bxf3 {[%emt 0:00:39]} Nc5 {[%emt 0:00:48]} 15. Rac1 {[%emt 0:04:22]} a5 {[%emt 0:02:02]} 16. h3 {[%emt 0:11:02]} c6 {[%emt 0:08:42]} 17. Ne2 {[%emt 0:06:18]} f5 {[%emt 0:02:39]} 18. exf5 {[%emt 0:03:05]} Bxf5 {[%emt 0:00:10]} 19. Bd4 {[%emt 0:02:56]} Bxh3 {[%emt 0:08:39]} 20. Bxg7 {[%emt 0:01:17]} Kxg7 {[%emt 0:00:04]} 21. Qc3+ {[%emt 0:00:32]} 1-0

[Event "26th Abu Dhabi Master 2019"]
[Site "Abu Dhabi"]
[Date "2019.08.03"]
[Round "2.51"]
[White "Aakanksha Hagawane"]
[Black "Muradli, Mahammad"]
[Result "0-1"]
[ECO "B93"]
[WhiteElo "2246"]
[BlackElo "2454"]
[Annotator "ChessBase"]
[PlyCount "122"]
[EventDate "2019.08.02"]
[EventType "swiss"]
[EventCountry "UAE"]
[SourceTitle "playchess.com"]
[Source "ChessBase"]
[SourceQuality "1"]
[TimeControl "5400+30"]

1. e4 c5 2. Nf3 d6 3. d4 cxd4 4. Nxd4 Nf6 5. Nc3 a6 6. f4 g6 7. Bd3 Bg7 8. Nf3 Qb6 9. Qe2 Nc6 10. Rb1 O-O 11. Be3 Qc7 12. O-O b5 13. a3 Bb7 14. Qe1 Na5 15. b3 Rac8 16. Bd2 Nc6 17. Kh1 Nd7 18. Nd5 Qd8 19. f5 Nf6 20. Qh4 Ne5 21. fxg6 Nxg6 22. Nxf6+ Bxf6 23. Qh6 Qd7 24. Rbe1 Rc5 25. b4 Bg7 26. Qe3 Rh5 27. Ng1 Bh6 28. Qe2 Bxd2 29. Qxd2 f6 30. Ne2 Ne5 31. Ng3 Rg5 32. Rf5 Rg6 33. Ref1 Kh8 34. Rh5 Rfg8 35. Rh6 Rg5 36. Rh5 Qe8 37. Rxg5 Rxg5 38. Rf5 Rg8 39. Rf4 Bc8 40. Be2 Be6 41. Nf5 Bxf5 42. exf5 Qf7 43. h3 Rg3 44. Qc1 Qd5 45. Rf2 Rxh3+ 46. Kg1 Rg3 47. Kh2 Rg5 48. Qe3 Rg4 49. Qa7 Qd4 50. Qxe7 Rh4+ 51. Kg1 Kg8 52. Qe8+ Kg7 53. Qe7+ Nf7 54. Bf3 Rf4 55. c3 Qxc3 56. Bd5 Qc1+ 57. Kh2 Rh4+ 58. Kg3 Qg5+ 59. Kf3 Rf4+ 60. Ke2 Rxf2+ 61. Kxf2 Qd2+ 0-1

[Event "26th Abu Dhabi Master 2019"]
[Site "Abu Dhabi"]
[Date "2019.08.03"]
[Round "2.52"]
[White "Sankalp Gupta"]
[Black "Bartel, Marta"]
[Result "1-0"]
[ECO "B62"]
[WhiteElo "2416"]
[BlackElo "2260"]
[Annotator "NA"]
[PlyCount "139"]
[EventDate "2019.08.02"]
[EventType "swiss"]
[EventCountry "UAE"]
[SourceTitle "playchess.com"]
[Source "ChessBase"]
[SourceQuality "1"]
[TimeControl "5400+30"]

1. e4 c5 2. Nf3 d6 3. d4 cxd4 4. Nxd4 Nf6 5. Nc3 Nc6 6. Bg5 e6 7. Qd3 a6 8. Nxc6 bxc6 9. O-O-O Be7 10. f4 Qc7 11. Be2 h6 12. Bxf6 gxf6 13. Bh5 Rb8 14. f5 Qb6 15. fxe6 Bxe6 16. b3 Qa5 17. Qf3 Qe5 18. Kb1 Rg8 19. g4 a5 20. h3 Rb4 21. Rhe1 Rb7 22. Ne2 a4 23. Nd4 a3 24. c3 Kd7 25. Kc2 Rgb8 26. Qd3 Kc7 27. Rb1 Rb6 28. Rf1 Qh2+ 29. Ne2 Rd8 30. Rbd1 d5 31. exd5 Bxd5 32. Qg3+ Qxg3 33. Nxg3 Bd6 34. Nf5 Be4+ 35. Kc1 Be5 36. Rxd8 Kxd8 37. Kd2 Bxf5 38. gxf5 Ke7 39. Kd3 Rb8 40. Kc4 Rd8 41. Rf2 Rb8 42. Bf3 Kd6 43. Rg2 Kc7 44. Rg7 Rf8 45. b4 Kb6 46. Bh5 Rd8 47. Rg2 Rd7 48. Rc2 Kc7 49. Be2 Bf4 50. Bd3 Kb6 51. Rg2 Re7 52. Rg8 Re3 53. Ra8 Rxh3 54. Rxa3 Rh1 55. Ra8 Rc1 56. Kb3 h5 57. Rh8 Be5 58. Bc2 Rh1 59. c4 h4 60. c5+ Kc7 61. Rh7 h3 62. Rxf7+ Kb8 63. Be4 Rf1 64. Bxc6 h2 65. Rh7 Rxf5 66. b5 Rg5 67. b6 Rg8 68. a4 Rc8 69. Rb7+ Ka8 70. Ra7+ 1-0

[Event "26th Abu Dhabi Master 2019"]
[Site "Abu Dhabi"]
[Date "2019.08.03"]
[Round "2.53"]
[White "Mendonca, Leon Luke"]
[Black "Pujari, Rucha"]
[Result "1-0"]
[ECO "D02"]
[WhiteElo "2401"]
[BlackElo "2268"]
[Annotator "NA"]
[PlyCount "165"]
[EventDate "2019.08.02"]
[EventType "swiss"]
[EventCountry "UAE"]
[SourceTitle "playchess.com"]
[Source "ChessBase"]
[SourceQuality "1"]
[TimeControl "5400+30"]

1. d4 {[%emt 0:00:00]} d5 {[%emt 0:00:19]} 2. Nf3 {[%emt 0:00:00]} c5 {[%emt 0:04:07]} 3. dxc5 {[%emt 0:08:06]} e6 {[%emt 0:10:50]} 4. e4 {[%emt 0:17:53]} Bxc5 {[%emt 0:09:03]} 5. exd5 {[%emt 0:01:10]} Qxd5 {[%emt 0:03:02]} 6. Qxd5 {[%emt 0:02:09]} exd5 {[%emt 0:00:02]} 7. Nc3 {[%emt 0:11:27]} Ne7 {[%emt 0:07:14]} 8. Nb5 {[%emt 0:08:27]} Na6 {[%emt 0:02:59]} 9. c3 {[%emt 0:00:23]} O-O {[%emt 0:07:51]} 10. Be2 {[%emt 0:04:43]} Re8 {[%emt 0:06:59]} 11. O-O {[%emt 0:02:18]} Nc6 {[%emt 0:01:09]} 12. Re1 {[%emt 0:05:35]} Bg4 {[%emt 0:06:00]} 13. Bf4 {[%emt 0:03:37]} Re4 {[%emt 0:08:54]} 14. Bg3 {[%emt 0:04:02]} Rd8 {[%emt 0:13:59]} 15. h3 {[%emt 0:03:39]} Bh5 {[%emt 0:01:58]} 16. Kf1 {[%emt 0:06:30]} h6 {[%emt 0:01:41]} 17. Rad1 {[%emt 0:03:48]} Nab8 {[%emt 0:07:53]} 18. b4 {[%emt 0:05:31]} Bf8 {[%emt 0:01:49]} 19. Bc7 {[%emt 0:07:31]} Rd7 {[%emt 0:02:35]} 20. Bxb8 {[%emt 0:00:26]} Nxb8 {[%emt 0:00:01]} 21. Nxa7 {[%emt 0:00:08]} g5 {[%emt 0:01:28]} 22. Nb5 {[%emt 0:00:15]} Nc6 {[%emt 0:00:12]} 23. Nfd4 {[%emt 0:01:11]} Bg6 {[%emt 0:00:43]} 24. Bd3 {[%emt 0:01:07]} Rxe1+ {[%emt 0:00:35]} 25. Kxe1 {[%emt 0:00:01]} Bxd3 {[%emt 0:00:30]} 26. Rxd3 {[%emt 0:00:01]} Ne5 {[%emt 0:00:01]} 27. Rd1 {[%emt 0:01:06]} Nc4 {[%emt 0:00:48]} 28. a4 {[%emt 0:01:22]} Nb2 {[%emt 0:00:41]} 29. Ra1 {[%emt 0:00:22]} Kh7 {[%emt 0:00:10]} 30. a5 {[%emt 0:00:15]} Re7+ {[%emt 0:00:53]} 31. Kf1 {[%emt 0:01:37]} Nd3 {[%emt 0:00:02]} 32. Rd1 {[%emt 0:00:25]} Nf4 {[%emt 0:00:16]} 33. Nf5 {[%emt 0:00:38]} Rd7 {[%emt 0:00:41]} 34. g3 {[%emt 0:00:40]} Ne6 {[%emt 0:00:47]} 35. Ne3 {[%emt 0:00:30]} d4 {[%emt 0:00:15]} 36. Nc2 {[%emt 0:00:33]} d3 {[%emt 0:00:48]} 37. Ne3 {[%emt 0:00:29]} Kg6 {[%emt 0:00:19]} 38. Ke1 {[%emt 0:00:30]} f5 {[%emt 0:00:14]} 39. Nc4 {[%emt 0:00:30]} Rd5 {[%emt 0:00:05]} 40. Nba3 {[%emt 0:00:22]} Bg7 {[%emt 0:00:01]} 41. Nb1 {[%emt 0:00:33]} f4 {[%emt 0:00:45]} 42. Nb2 {[%emt 0:00:32]} fxg3 {[%emt 0:01:43]} 43. fxg3 {[%emt 0:00:01]} g4 {[%emt 0:00:36]} 44. h4 {[%emt 0:00:59]} Be5 {[%emt 0:00:27]} 45. Kf2 {[%emt 0:00:18]} Kf5 {[%emt 0:00:32]} 46. Rxd3 {[%emt 0:00:38]} Rxd3 {[%emt 0:00:13]} 47. Nxd3 {[%emt 0:00:01]} Bb8 {[%emt 0:00:01]} 48. Nd2 {[%emt 0:00:33]} Ng7 {[%emt 0:00:49]} 49. Nc5 {[%emt 0:00:27]} Nh5 {[%emt 0:00:48]} 50. Nde4 {[%emt 0:00:07]} Ba7 {[%emt 0:00:35]} 51. Nd6+ {[%emt 0:00:56]} Ke5 {[%emt 0:00:17]} 52. Ndxb7 {[%emt 0:00:07]} Kd5 {[%emt 0:00:09]} 53. Kg2 {[%emt 0:01:04]} Nf6 {[%emt 0:00:42]} 54. a6 {[%emt 0:00:50]} Ne8 {[%emt 0:00:52]} 55. Kf2 {[%emt 0:00:31]} Kc4 {[%emt 0:00:34]} 56. Ke3 Kxc3 57. Kf4 Kxb4 58. Kxg4 Ng7 59. Ne4 Kb5 60. Nbd6+ Kxa6 61. Nf5 Ne6 62. Nxh6 Kb5 63. Nf5 Kc6 64. Nf6 Bb6 65. Ne7+ Kb7 66. Kf5 Ng7+ 67. Kg6 Ne6 68. g4 Bf2 69. h5 Nf4+ 70. Kf7 Nh3 71. Ne4 Be3 72. Kf6 Bd4+ 73. Kf5 Kc7 74. Nf6 Kd6 75. Ned5 Bxf6 76. Kxf6 Nf2 77. Ne3 Ne4+ 78. Kg6 Ke6 79. h6 Nf6 80. g5 Nd7 81. Kg7 Ne5 82. h7 Nf7 83. g6 {Kd5} 1-0

[Event "26th Abu Dhabi Master 2019"]
[Site "Abu Dhabi"]
[Date "2019.08.03"]
[Round "2.54"]
[White "Assaubayeva, Bibisara"]
[Black "Ayyad, Husain"]
[Result "1-0"]
[ECO "D43"]
[WhiteElo "2375"]
[BlackElo "2231"]
[Annotator "NA"]
[PlyCount "69"]
[EventDate "2019.08.02"]
[EventType "swiss"]
[EventCountry "UAE"]
[SourceTitle "playchess.com"]
[Source "ChessBase"]
[SourceQuality "1"]
[TimeControl "5400+30"]

1. Nf3 Nf6 2. c4 e6 3. Nc3 d5 4. d4 c6 5. Bg5 Nbd7 6. cxd5 exd5 7. e3 Be7 8. Bd3 O-O 9. O-O Re8 10. Qc2 h6 11. Bf4 Nh5 12. Nxd5 Nxf4 13. Nxf4 Nf6 14. Bc4 Bd6 15. Nd3 b5 16. Bb3 Bf5 17. Qc3 Rc8 18. Nfe5 Rc7 19. Rad1 Nd5 20. Qd2 a6 21. Rfe1 Bxd3 22. Nxd3 Nf6 23. Qe2 Qe7 24. f4 c5 25. dxc5 Bxc5 26. Ne5 Qf8 27. Kh1 Bb4 28. Rc1 Rec8 29. Rxc7 Rxc7 30. Rd1 Qe8 31. e4 Kf8 32. Qd3 Qa8 33. Bxf7 Nxe4 34. Qb3 Bc5 35. Ng6# 1-0

[Event "26th Abu Dhabi Master 2019"]
[Site "Abu Dhabi"]
[Date "2019.08.03"]
[Round "2.55"]
[White "Rathanvel, V S"]
[Black "Srihari L R"]
[Result "1-0"]
[ECO "B07"]
[WhiteElo "2367"]
[BlackElo "2227"]
[Annotator "NA"]
[PlyCount "145"]
[EventDate "2019.08.02"]
[EventType "swiss"]
[EventCountry "UAE"]
[SourceTitle "playchess.com"]
[Source "ChessBase"]
[SourceQuality "1"]
[TimeControl "5400+30"]

1. e4 {[%emt 0:00:00]} d6 {[%emt 0:03:14]} 2. d4 {[%emt 0:00:00]} Nf6 {[%emt 0:00:06]} 3. Nc3 {[%emt 0:00:00]} c6 {[%emt 0:00:22]} 4. f4 {[%emt 0:00:04]} Qa5 {[%emt 0:00:17]} 5. Bd3 {[%emt 0:00:09]} e5 {[%emt 0:00:21]} 6. Nf3 {[%emt 0:00:33]} exd4 {[%emt 0:00:11]} 7. Nxd4 {[%emt 0:00:12]} g6 {[%emt 0:00:05]} 8. Be3 {[%emt 0:08:13]} Bg7 {[%emt 0:05:46]} 9. h3 {[%emt 0:01:35]} O-O {[%emt 0:06:07]} 10. O-O {[%emt 0:01:52]} Nbd7 {[%emt 0:02:58]} 11. Qd2 {[%emt 0:10:25]} Re8 {[%emt 0:14:16]} 12. Nb3 {[%emt 0:15:14]} Qc7 {[%emt 0:02:48]} 13. a4 {[%emt 0:00:26]} a6 {[%emt 0:15:56]} 14. Qf2 {[%emt 0:07:57]} c5 {[%emt 0:11:04]} 15. Nd2 {[%emt 0:06:47]} b6 {[%emt 0:08:59]} 16. Be2 {[%emt 0:21:24]} Bb7 {[%emt 0:01:22]} 17. Bf3 {[%emt 0:00:48]} Re7 {[%emt 0:07:56]} 18. Rad1 {[%emt 0:02:21]} c4 {[%emt 0:11:51]} 19. Bd4 {[%emt 0:01:33]} Rae8 {[%emt 0:00:48]} 20. Rfe1 {[%emt 0:02:43]} h6 {[%emt 0:04:53]} 21. Qf1 {[%emt 0:02:37]} Rc8 {[%emt 0:00:25]} 22. e5 {[%emt 0:00:57]} dxe5 {[%emt 0:00:42]} 23. fxe5 {[%emt 0:00:11]} Ne8 {[%emt 0:00:30]} 24. Bxb7 {[%emt 0:01:15]} Qxb7 {[%emt 0:00:01]} 25. Nxc4 {[%emt 0:00:33]} Qc6 {[%emt 0:00:52]} 26. Ne3 {[%emt 0:04:00]} Nc7 {[%emt 0:00:31]} 27. Ng4 {[%emt 0:03:11]} Rce8 {[%emt 0:00:26]} 28. Ne4 {[%emt 0:00:50]} h5 {[%emt 0:00:40]} 29. Ngf6+ {[%emt 0:02:26]} Bxf6 {[%emt 0:00:06]} 30. Nxf6+ {[%emt 0:00:13]} Nxf6 {[%emt 0:00:04]} 31. exf6 {[%emt 0:00:07]} Rxe1 {[%emt 0:00:03]} 32. Rxe1 {[%emt 0:00:05]} Rxe1 {[%emt 0:00:56]} 33. Qxe1 {[%emt 0:00:02]} Ne6 {[%emt 0:00:50]} 34. Bc3 {[%emt 0:05:10]} Qxa4 {[%emt 0:00:43]} 35. Qf2 {[%emt 0:02:19]} Qc6 {[%emt 0:00:47]} 36. Qg3 {[%emt 0:00:27]} Kh7 {[%emt 0:00:31]} 37. Qb8 {[%emt 0:00:40]} a5 {[%emt 0:00:30]} 38. Kh1 {[%emt 0:00:52]} a4 {[%emt 0:00:27]} 39. Qe5 {[%emt 0:00:31]} Qd7 {[%emt 0:00:31]} 40. Qe4 {[%emt 0:00:25]} b5 {[%emt 0:00:27]} 41. Kh2 {[%emt 0:00:32]} Qc7+ {[%emt 0:00:27]} 42. Be5 {[%emt 0:00:07]} Qc5 {[%emt 0:00:37]} 43. c3 {[%emt 0:00:25]} Qa7 {[%emt 0:00:32]} 44. Bd6 {[%emt 0:00:53]} Qd7 {[%emt 0:00:28]} 45. Qe5 {[%emt 0:00:17]} Qc6 {[%emt 0:00:22]} 46. Kg3 {[%emt 0:00:27]} Qc4 {[%emt 0:00:28]} 47. Kh2 {[%emt 0:00:35]} Qd3 {[%emt 0:00:38]} 48. Be7 {[%emt 0:00:39]} h4 {[%emt 0:00:30]} 49. Kg1 {[%emt 0:00:39]} Qb1+ {[%emt 0:00:23]} 50. Kh2 {[%emt 0:00:05]} Qxb2 {[%emt 0:00:22]} 51. Qxe6 {[%emt 0:00:32]} fxe6 {[%emt 0:00:28]} 52. f7 {[%emt 0:00:01]} Qxc3 {[%emt 0:00:30]} 53. f8=Q {[%emt 0:00:05]} Qg3+ {[%emt 0:00:40]} 54. Kg1 {[%emt 0:00:06]} Qe3+ {[%emt 0:00:18]} 55. Qf2 {[%emt 0:01:17]} Qc1+ {[%emt 0:00:05]} 56. Qf1 {[%emt 0:00:05]} Qxf1+ {[%emt 0:01:11]} 57. Kxf1 {[%emt 0:00:01]} Kg7 {[%emt 0:00:18]} 58. Ke2 {[%emt 0:01:12]} Kf7 {[%emt 0:00:15]} 59. Bxh4 {[%emt 0:00:44]} b4 {[%emt 0:01:00]} 60. Bg5 {[%emt 0:00:24]} e5 {[%emt 0:00:27]} 61. Kd3 {[%emt 0:00:31]} b3 {[%emt 0:00:33]} 62. Bc1 {[%emt 0:00:13]} Ke6 {[%emt 0:00:25]} 63. Ke4 {[%emt 0:00:36]} Kd6 {[%emt 0:00:16]} 64. Ba3+ {[%emt 0:00:05]} Ke6 {[%emt 0:00:17]} 65. h4 {[%emt 0:00:08]} Kf6 {[%emt 0:00:45]} 66. g4 {[%emt 0:00:05]} Ke6 {[%emt 0:00:41]} 67. g5 {[%emt 0:00:06]} Kf7 {[%emt 0:00:06]} 68. Kxe5 {[%emt 0:00:04]} Kg7 {[%emt 0:00:03]} 69. Ke6 {[%emt 0:00:09]} Kh8 {[%emt 0:00:27]} 70. Kf7 {[%emt 0:00:12]} Kh7 {[%emt 0:00:03]} 71. h5 {[%emt 0:00:07]} gxh5 {[%emt 0:00:04]} 72. g6+ {[%emt 0:00:04]} Kh6 {[%emt 0:00:04]} 73. Bc1# {[%emt 0:00:05]} 1-0